fUST/lending_fUST_20250618
["ID","MTS","AMOUNT","RATE_DAILY","PERIOD"]
[366313726,1750183847925,-274.49044796,0.00022027,6]
[366313728,1750183847935,-460.0,0.00022027,6]
[366313730,1750183847944,-460.0,0.00022027,6]
[366313732,1750183847954,-460.0,0.00022027,6]
[366313734,1750183847963,-460.0,0.00022027,6]
[366313736,1750183847973,-460.0,0.00022027,6]
[366313738,1750183847982,-460.0,0.00022027,6]
[366313739,1750183847991,-460.0,0.00022027,6]
[366313741,1750183848001,-460.0,0.00022027,6]
[366313743,1750183848011,-370.0,0.00022027,6]
[366313745,1750183848020,-460.0,0.00022027,6]
[366313747,1750183848030,-460.0,0.00022027,6]
[366313749,1750183848042,-460.0,0.00022027,6]
[366313751,1750183848054,-460.0,0.00022027,6]
[366313753,1750183848063,-570.391839,0.00022027,6]
[366313755,1750183848073,-460.0,0.00022027,6]
[366313757,1750183848084,-460.0,0.00022027,6]
[366313759,1750183848094,-460.0,0.00022027,6]
[366313761,1750183848104,-460.0,0.00022027,6]
[366313763,1750183848114,-460.0,0.00022027,6]
[366313765,1750183848124,-440.0,0.00022027,6]
[366313780,1750183848270,-460.0,0.00022027,6]
[366313782,1750183848280,-430.0,0.00022027,6]
[366313784,1750183848291,-460.0,0.00022027,6]
[366313786,1750183848301,-460.0,0.00022027,6]
[366313788,1750183848311,-460.0,0.00022027,6]
[366313790,1750183848321,-460.0,0.00022027,6]
[366313792,1750183848331,-460.0,0.00022027,6]
[366313794,1750183848341,-460.0,0.00022027,6]
[366313796,1750183848352,-422.6245373,0.00022027,6]
[366313798,1750183848362,-460.0,0.00022027,6]
[366313800,1750183848371,-460.0,0.00022027,6]
[366313802,1750183848383,-460.0,0.00022027,6]
[366313804,1750183848393,-460.0,0.00022027,6]
[366313806,1750183848404,-460.0,0.00022027,6]
[366313808,1750183848413,-460.0,0.00022027,6]
[366313810,1750183848423,-460.0,0.00022027,6]
[366313812,1750183848433,-460.0,0.00022027,6]
[366313814,1750183848443,-460.0,0.00022027,6]
[366313815,1750183848452,-460.0,0.00022027,6]
[366313817,1750183848462,-460.0,0.00022027,6]
[366313819,1750183848471,-460.0,0.00022027,6]
[366313821,1750183848482,-460.0,0.00022027,6]
[366313823,1750183848492,-460.0,0.00022027,6]
[366313825,1750183848501,-460.0,0.00022027,6]
[366313827,1750183848511,-460.0,0.00022027,6]
[366313829,1750183848521,-460.0,0.00022027,6]
[366313831,1750183848530,-460.0,0.00022027,6]
[366313833,1750183848540,-460.0,0.00022027,6]
[366313835,1750183848550,-460.0,0.00022027,6]
[366313836,1750183848560,-460.0,0.00022027,6]
[366313838,1750183848569,-460.0,0.00022027,6]
[366313840,1750183848579,-460.0,0.00022027,6]
[366313842,1750183848589,-460.0,0.00022027,6]
[366313844,1750183848599,-460.0,0.00022027,6]
[366313846,1750183848609,-402.89837996,0.00022027,6]
[366313848,1750183848619,-460.0,0.00022027,6]
[366313850,1750183848629,-460.0,0.00022027,6]
[366313852,1750183848639,-460.0,0.00022027,6]
[366313854,1750183848650,-460.0,0.00022027,6]
[366313855,1750183848661,-179.53432683,0.00022027,6]
[366313857,1750183848670,-430.0,0.00022027,6]
[366313859,1750183848680,-430.86228388,0.00022027,6]
[366313861,1750183848691,-475.9,0.00022027,6]
[366313863,1750183848701,-460.0,0.00022027,6]
[366313865,1750183848711,-460.0,0.00022027,6]
[366313867,1750183848721,-335.81082074,0.00022027,6]
[366313869,1750183848731,-460.0,0.00022027,6]
[366313871,1750183848742,-1798.27,0.00022027,6]
[366313873,1750183848753,-460.0,0.00022027,6]
[366313875,1750183848763,-460.0,0.00022027,6]
[366313877,1750183848773,-343.61081315,0.00022027,6]
[366313879,1750183848783,-309.68180565,0.00022027,6]
[366313881,1750183848793,-460.0,0.00022027,6]
[366313883,1750183848802,-5605.9,0.00022027,6]
[366313885,1750183848812,-734.84,0.00022027,6]
[366313887,1750183848822,-460.0,0.00022027,6]
[366313889,1750183848832,-364.96657102,0.00022027,6]
[366313891,1750183848841,-460.0,0.00022027,6]
[366313892,1750183848851,-460.0,0.00022027,6]
[366313894,1750183848861,-570.66,0.00022027,6]
[366313896,1750183848871,-460.0,0.00022027,6]
[366313898,1750183848881,-460.0,0.00022027,6]
[366313900,1750183848890,-460.0,0.00022027,6]
[366313902,1750183848900,-460.0,0.00022027,6]
[366313904,1750183848911,-460.0,0.00022027,6]
[366313906,1750183848921,-460.0,0.00022027,6]
[366313908,1750183848931,-460.0,0.00022027,6]
[366313910,1750183848941,-460.0,0.00022027,6]
[366313912,1750183848951,-440.0,0.00022027,6]
[366313914,1750183848961,-460.0,0.00022027,6]
[366313916,1750183848971,-460.0,0.00022027,6]
[366313918,1750183848982,-460.0,0.00022027,6]
[366313919,1750183848992,-460.0,0.00022027,6]
[366313921,1750183849002,-833.52,0.00022027,6]
[366313923,1750183849012,-460.0,0.00022027,6]
[366313925,1750183849022,-1871.98,0.00022027,6]
[366313927,1750183849032,-460.0,0.00022027,6]
[366313929,1750183849045,-1529.02,0.00022027,6]
[366313931,1750183849055,-460.0,0.00022027,6]
[366313933,1750183849065,-920.73,0.00022027,6]
[366313935,1750183849075,-460.0,0.00022027,6]
[366313937,1750183849085,-277.98287863,0.00022027,6]
[366313938,1750183849096,-460.0,0.00022027,6]
[366313940,1750183849106,-460.0,0.00022027,6]
[366313942,1750183849117,-460.0,0.00022027,6]
[366313944,1750183849127,-460.0,0.00022027,6]
[366313946,1750183849138,-2538.75,0.00022027,6]
[366313948,1750183849147,-395.65287359,0.00022027,6]
[366313949,1750183849158,-460.0,0.00022027,6]
[366313951,1750183849168,-460.0,0.00022027,6]
[366313953,1750183849178,-460.0,0.00022027,6]
[366313955,1750183849189,-460.0,0.00022027,6]
[366313957,1750183849198,-460.0,0.00022027,6]
[366313959,1750183849208,-460.0,0.00022027,6]
[366313961,1750183849218,-582.78,0.00022027,6]
[366313963,1750183849228,-460.0,0.00022027,6]
[366313965,1750183849238,-460.0,0.00022027,6]
[366313967,1750183849248,-460.0,0.00022027,6]
[366313969,1750183849258,-169.61314744,0.00022027,6]
[366313970,1750183849268,-1732.82,0.00022027,6]
[366313972,1750183849278,-618.4,0.00022027,6]
[366313974,1750183849288,-596.57,0.00022027,6]
[366313976,1750183849298,-460.0,0.00022027,6]
[366313978,1750183849309,-481.99,0.00022027,6]
[366313980,1750183849322,-460.0,0.00022027,6]
[366313982,1750183849332,-1910.9,0.00022027,6]
[366313984,1750183849343,-1647.12,0.00022027,6]
[366313986,1750183849353,-4547.79,0.00022027,6]
[366313988,1750183849363,-420.0,0.00022027,6]
[366313990,1750183849372,-460.0,0.00022027,6]
[366313992,1750183849382,-460.0,0.00022027,6]
[366313994,1750183849391,-460.0,0.00022027,6]
[366313996,1750183849401,-1551.95,0.00022027,6]
[366313997,1750183849412,-460.0,0.00022027,6]
[366313999,1750183849423,-460.0,0.00022027,6]
[366314001,1750183849432,-460.0,0.00022027,6]
[366314003,1750183849442,-537.84961724,0.00022027,6]
[366314005,1750183849452,-5865.31,0.00022027,6]
[366314007,1750183849463,-1986.44,0.00022027,6]
[366314009,1750183849472,-5369.29,0.00022027,6]
[366314011,1750183849482,-650.75,0.00022027,6]
[366314013,1750183849491,-1652.96,0.00022027,6]
[366314015,1750183849501,-371.82347606,0.00022027,6]
[366314017,1750183849511,-491.1,0.00022027,6]
[366314019,1750183849520,-1822.09,0.00022027,6]
[366314021,1750183849530,-2564.14,0.00022027,6]
[366314023,1750183849539,-460.0,0.00022027,6]
[366314025,1750183849551,-460.0,0.00022027,6]
[366314027,1750183849560,-460.0,0.00022027,6]
[366314029,1750183849569,-666.07,0.00022027,6]
[366314030,1750183849579,-460.0,0.00022027,6]
[366314032,1750183849588,-460.0,0.00022027,6]
[366314034,1750183849599,-9034.17,0.00022027,6]
[366314036,1750183849608,-835.98,0.00022027,6]
[366314038,1750183849617,-748.19,0.00022027,6]
[366314040,1750183849626,-460.0,0.00022027,6]
[366314042,1750183849635,-460.0,0.00022027,6]
[366314044,1750183849645,-440.0,0.00022027,6]
[366314046,1750183849655,-460.0,0.00022027,6]
[366314048,1750183849665,-460.0,0.00022027,6]
[366314050,1750183849675,-460.0,0.00022027,6]
[366314052,1750183849684,-522.02,0.00022027,6]
[366314053,1750183849693,-460.0,0.00022027,6]
[366314055,1750183849703,-460.0,0.00022027,6]
[366314057,1750183849712,-169.58148553,0.00022027,6]
[366314059,1750183849722,-460.0,0.00022027,6]
[366314061,1750183849732,-300.0,0.00022027,6]
[366314063,1750183849741,-460.0,0.00022027,6]
[366314065,1750183849751,-460.0,0.00022027,6]
[366314067,1750183849761,-1297.48,0.00022027,6]
[366314069,1750183849771,-471.01585315,0.00022027,6]
[366314071,1750183849780,-2238.85,0.00022027,6]
[366314073,1750183849789,-460.0,0.00022027,6]
[366314075,1750183849799,-2281.84,0.00022027,6]
[366314077,1750183849809,-460.0,0.00022027,6]
[366314079,1750183849819,-460.0,0.00022027,6]
[366314081,1750183849829,-6152.94,0.00022027,6]
[366314083,1750183849838,-460.0,0.00022027,6]
[366314085,1750183849848,-530.82,0.00022027,6]
[366314087,1750183849857,-460.0,0.00022027,6]
[366314089,1750183849867,-460.0,0.00022027,6]
[366314091,1750183849877,-461.84,0.00022027,6]
[366314092,1750183849886,-460.0,0.00022027,6]
[366314094,1750183849895,-533.36,0.00022027,6]
[366314096,1750183849905,-460.0,0.00022027,6]
[366314098,1750183849914,-975.18,0.00022027,6]
[366314100,1750183849924,-460.0,0.00022027,6]
[366314102,1750183849933,-460.0,0.00022027,6]
[366314104,1750183849943,-440.0,0.00022027,6]
[366314106,1750183849953,-1118.9,0.00022027,6]
[366314108,1750183849963,-460.0,0.00022027,6]
[366314110,1750183849972,-503.07780861,0.00022027,6]
[366314112,1750183849982,-151.0,0.00022027,7]
[366314114,1750183849992,-151.0,0.00022027,7]
[366314116,1750183850001,-2996.81,0.00022027,6]
[366314118,1750183850011,-430.0,0.00022027,6]
[366314119,1750183850020,-2719.07,0.00022027,6]
[366314121,1750183850030,-2147.82,0.00022027,6]
[366314123,1750183850041,-732.3,0.00022027,6]
[366314125,1750183850051,-151.0,0.00022027,7]
[366314127,1750183850061,-546.66,0.00022027,6]
[366314129,1750183850071,-460.0,0.00022027,6]
[366314131,1750183850082,-500.0,0.00022027,2]
[366314132,1750183850094,-1701.19,0.00022027,6]
[366314133,1750183850103,-460.0,0.00022027,6]
[366314134,1750183850113,-460.0,0.00022027,6]
[366314135,1750183850125,-3292.96,0.00022027,6]
[366314136,1750183850136,-460.0,0.00022027,6]
[366314137,1750183850147,-430.0,0.00022027,6]
[366314138,1750183850157,-460.0,0.00022027,6]
[366314139,1750183850167,-152.97089213,0.00022027,6]
[366314140,1750183850177,-1131.49,0.00022027,6]
[366314141,1750183850188,-460.0,0.00022027,6]
[366314142,1750183850198,-460.0,0.00022027,6]
[366314143,1750183850209,-151.0,0.00022027,7]
[366314144,1750183850219,-400.0,0.00022027,6]
[366314145,1750183850229,-1230.25,0.00022027,6]
[366314146,1750183850239,-1447.09,0.00022027,6]
[366314147,1750183850250,-460.0,0.00022027,6]
[366314148,1750183850260,-997.03,0.00022027,6]
[366314149,1750183850271,-2693.89,0.00022027,6]
[366314150,1750183850281,-460.0,0.00022027,6]
[366314151,1750183850291,-460.0,0.00022027,6]
[366314152,1750183850301,-460.0,0.00022027,6]
[366314153,1750183850312,-599.07,0.00022027,6]
[366314154,1750183850322,-460.0,0.00022027,6]
[366314155,1750183850332,-3332.65,0.00022027,6]
[366314156,1750183850342,-460.0,0.00022027,6]
[366314157,1750183850351,-532.08,0.00022027,6]
[366314158,1750183850361,-460.0,0.00022027,6]
[366314159,1750183850370,-460.0,0.00022027,6]
[366314161,1750183850379,-460.0,0.00022027,6]
[366314162,1750183850390,-1084.84,0.00022027,6]
[366314164,1750183850399,-460.0,0.00022027,6]
[366314166,1750183850409,-460.0,0.00022027,6]
[366314168,1750183850418,-8169.73,0.00022027,6]
[366314170,1750183850428,-460.0,0.00022027,6]
[366314172,1750183850437,-460.0,0.00022027,6]
[366314174,1750183850448,-460.0,0.00022027,6]
[366314176,1750183850457,-460.0,0.00022027,6]
[366314178,1750183850467,-709.25,0.00022027,6]
[366314180,1750183850476,-516.95385292,0.00022027,6]
[366314182,1750183850486,-460.0,0.00022027,6]
[366314184,1750183850495,-361.37020083,0.00022027,6]
[366314186,1750183850505,-460.0,0.00022027,6]
[366314188,1750183850514,-1573.04,0.00022027,6]
[366314190,1750183850524,-1472.35,0.00022027,6]
[366314192,1750183850534,-460.0,0.00022027,6]
[366314194,1750183850543,-1007.03,0.00022027,6]
[366314196,1750183850553,-460.0,0.00022027,6]
[366314198,1750183850562,-730.4125468,0.00022027,2]
[366314200,1750183850572,-500.0,0.00022073,2]
[366314202,1750183850581,-500.0,0.00022073,2]
[366314204,1750183850591,-500.0,0.00022073,2]
[366314206,1750183850600,-500.0,0.00022073,2]
[366314208,1750183850610,-500.0,0.00022073,2]
[366314210,1750183850619,-507.75060921,0.00022073,2]
[366314212,1750183850629,-500.0,0.00022073,2]
[366314214,1750183850638,-500.0,0.00022073,2]
[366314216,1750183850647,-500.0,0.00022073,2]
[366314218,1750183850657,-506.96582777,0.00022073,2]
[366314220,1750183850666,-500.0,0.00022073,2]
[366314222,1750183850675,-500.0,0.00022073,2]
[366314224,1750183850684,-500.0,0.00022073,2]
[366314226,1750183850693,-1000.0,0.00022095,2]
[366314231,1750183850738,-1000.0,0.00022095,2]
[366314233,1750183850749,-1000.0,0.00022095,2]
[366314235,1750183850759,-151.0,0.00022096,7]
[366314237,1750183850768,-119533.86,0.000221,2]
[366314239,1750183850777,-151.0,0.000221,10]
[366314241,1750183850787,-151.0,0.000221,7]
[366314243,1750183850797,-1427.17308239,0.00022107,6]
[366314245,1750183850806,-1000.0,0.00022135,2]
[366314247,1750183850817,-1000.0,0.00022135,2]
[366314249,1750183850827,-200.0,0.00022135,2]
[366314251,1750183850836,-460.0,0.00022136,6]
[366314253,1750183850845,-362.44957625,0.00022136,6]
[366314255,1750183850854,-376.19836587,0.00022136,6]
[366314257,1750183850864,-440.0,0.00022136,6]
[366314259,1750183850873,-460.0,0.00022136,6]
[366314261,1750183850882,-460.0,0.00022136,6]
[366314263,1750183850892,-460.0,0.00022136,6]
[366314265,1750183850901,-253.93242561,0.00022136,6]
[366314267,1750183850913,-460.0,0.00022136,6]
[366314269,1750183850923,-420.0,0.00022136,6]
[366314271,1750183850932,-460.0,0.00022136,6]
[366314273,1750183850942,-460.0,0.00022136,6]
[366314275,1750183850951,-460.0,0.00022136,6]
[366314277,1750183850961,-460.0,0.00022136,6]
[366314279,1750183850970,-353.8115949,0.00022136,6]
[366314281,1750183850979,-460.0,0.00022136,6]
[366314283,1750183850990,-472.80155439,0.00022136,6]
[366314285,1750183850999,-460.0,0.00022136,6]
[366314287,1750183851009,-460.0,0.00022136,6]
[366314289,1750183851019,-460.0,0.00022136,6]
[366314291,1750183851028,-460.0,0.00022136,6]
[366314293,1750183851039,-547.3,0.00022136,6]
[366314295,1750183851049,-460.0,0.00022136,6]
[366314297,1750183851059,-460.0,0.00022136,6]
[366314299,1750183851069,-516.39,0.00022136,6]
[366314301,1750183851079,-460.0,0.00022136,6]
[366314303,1750183851088,-326.61019358,0.00022136,6]
[366314305,1750183851097,-318.48755791,0.00022136,6]
[366314307,1750183851106,-518.73,0.00022136,6]
[366314309,1750183851117,-460.0,0.00022136,6]
[366314311,1750183851126,-918.33,0.00022136,6]
[366314313,1750183851135,-460.0,0.00022136,6]
[366314314,1750183851144,-333.50870387,0.00022136,6]
[366314316,1750183851155,-460.0,0.00022136,6]
[366314318,1750183851166,-1120.85,0.00022136,2]
[366314320,1750183851175,-460.0,0.00022136,6]
[366314322,1750183851185,-460.0,0.00022136,6]
[366314324,1750183851194,-478.12,0.00022136,6]
[366314326,1750183851204,-297.30299521,0.00022136,6]
[366314328,1750183851213,-460.0,0.00022136,6]
[366314330,1750183851222,-531.1,0.00022136,6]
[366314332,1750183851231,-460.0,0.00022136,6]
[366314334,1750183851240,-460.0,0.00022136,6]
[366314336,1750183851250,-1220.25,0.00022136,6]
[366314338,1750183851260,-460.0,0.00022136,6]
[366314340,1750183851270,-1048.25,0.00022136,6]
[366314342,1750183851279,-460.0,0.00022136,6]
[366314344,1750183851289,-460.0,0.00022136,6]
[366314346,1750183851299,-460.0,0.00022136,6]
[366314348,1750183851308,-440.0,0.00022136,6]
[366314350,1750183851317,-460.0,0.00022136,6]
[366314352,1750183851328,-460.0,0.00022136,6]
[366314354,1750183851337,-440.0,0.00022136,6]
[366314355,1750183851347,-460.0,0.00022136,6]
[366314357,1750183851356,-460.0,0.00022136,6]
[366314359,1750183851366,-430.0,0.00022136,6]
[366314361,1750183851376,-460.0,0.00022136,6]
[366314363,1750183851386,-460.0,0.00022136,6]
[366314365,1750183851395,-523.98606407,0.00022136,6]
[366314367,1750183851406,-471.00293034,0.00022136,6]
[366314369,1750183851417,-460.0,0.00022136,6]
[366314371,1750183851427,-460.0,0.00022136,6]
[366314373,1750183851437,-390.0,0.00022136,6]
[366314375,1750183851447,-460.0,0.00022136,6]
[366314377,1750183851456,-460.0,0.00022136,6]
[366314379,1750183851467,-518.80545207,0.00022136,6]
[366314381,1750183851477,-460.0,0.00022136,6]
[366314383,1750183851487,-460.0,0.00022136,6]
[366314385,1750183851496,-460.0,0.00022136,6]
[366314388,1750183851506,-460.0,0.00022136,6]
[366314389,1750183851516,-440.0,0.00022136,6]
[366314391,1750183851526,-460.0,0.00022136,6]
[366314393,1750183851535,-460.0,0.00022136,6]
[366314396,1750183851545,-248.13228667,0.00022136,6]
[366314398,1750183851555,-460.0,0.00022136,6]
[366314400,1750183851567,-525.36,0.00022136,6]
[366314402,1750183851576,-460.0,0.00022136,6]
[366314404,1750183851586,-460.0,0.00022136,6]
[366314406,1750183851595,-151.0,0.00022136,7]
[366314408,1750183851605,-529.15865952,0.00022136,6]
[366314410,1750183851614,-506.77,0.00022136,6]
[366314412,1750183851623,-151.0,0.00022136,7]
[366314414,1750183851632,-460.0,0.00022136,6]
[366314416,1750183851643,-460.0,0.00022136,6]
[366314418,1750183851652,-571.29,0.00022136,6]
[366314420,1750183851666,-460.0,0.00022136,6]
[366314422,1750183851676,-460.0,0.00022136,6]
[366314424,1750183851686,-460.0,0.00022136,6]
[366314426,1750183851695,-156.453536,0.00022136,7]
[366314428,1750183851705,-460.0,0.00022136,6]
[366314430,1750183851715,-500.0,0.00022136,6]
[366314432,1750183851725,-430.0,0.00022136,6]
[366314434,1750183851735,-460.0,0.00022136,6]
[366314436,1750183851744,-869.73,0.00022136,6]
[366314438,1750183851754,-460.0,0.00022136,6]
[366314440,1750183851763,-460.0,0.00022136,6]
[366314442,1750183851773,-460.0,0.00022136,6]
[366314444,1750183851783,-460.0,0.00022136,6]
[366314446,1750183851792,-460.0,0.00022136,6]
[366314448,1750183851804,-460.0,0.00022136,6]
[366314450,1750183851813,-460.0,0.00022136,6]
[366314452,1750183851824,-460.0,0.00022136,6]
[366314454,1750183851834,-460.0,0.00022136,6]
[366314456,1750183851844,-460.0,0.00022136,6]
[366314458,1750183851855,-430.0,0.00022136,6]
[366314460,1750183851865,-444.99872257,0.00022136,6]
[366314462,1750183851876,-430.0,0.00022136,6]
[366314464,1750183851886,-460.0,0.00022136,6]
[366314466,1750183851895,-460.0,0.00022136,6]
[366314468,1750183851908,-586.11428885,0.00022136,6]
[366314470,1750183851918,-460.0,0.00022136,6]
[366314471,1750183851928,-430.0,0.00022136,6]
[366314474,1750183851938,-460.0,0.00022136,6]
[366314475,1750183851949,-430.0,0.00022136,6]
[366314478,1750183851959,-460.0,0.00022136,6]
[366314480,1750183851969,-460.0,0.00022136,6]
[366314481,1750183851979,-460.0,0.00022136,6]
[366314483,1750183851990,-460.0,0.00022136,6]
[366314485,1750183851999,-460.0,0.00022136,6]
[366314487,1750183852009,-460.0,0.00022136,6]
[366314489,1750183852019,-460.0,0.00022136,6]
[366314491,1750183852029,-460.0,0.00022136,6]
[366314493,1750183852041,-288.92214792,0.00022136,6]
[366314495,1750183852053,-460.0,0.00022136,6]
[366314497,1750183852063,-460.0,0.00022136,6]
[366314499,1750183852073,-460.0,0.00022136,6]
[366314501,1750183852083,-460.0,0.00022136,6]
[366314504,1750183852094,-460.0,0.00022136,6]
[366314505,1750183852103,-460.0,0.00022136,6]
[366314507,1750183852113,-510.98869616,0.00022136,6]
[366314510,1750183852124,-460.0,0.00022136,6]
[366314512,1750183852134,-460.0,0.00022136,6]
[366314513,1750183852144,-430.0,0.00022136,6]
[366314515,1750183852153,-440.0,0.00022136,6]
[366314517,1750183852165,-427.38307187,0.00022136,6]
[366314519,1750183852174,-460.0,0.00022136,6]
[366314521,1750183852184,-420.0,0.00022136,6]
[366314523,1750183852193,-475.9,0.00022136,6]
[366314525,1750183852203,-460.0,0.00022136,6]
[366314527,1750183852212,-460.0,0.00022136,6]
[366314529,1750183852222,-460.0,0.00022136,6]
[366314531,1750183852231,-1798.27,0.00022136,6]
[366314534,1750183852241,-460.0,0.00022136,6]
[366314536,1750183852251,-460.0,0.00022136,6]
[366314537,1750183852261,-5605.9,0.00022136,6]
[366314539,1750183852271,-734.84,0.00022136,6]
[366314541,1750183852280,-460.0,0.00022136,6]
[366314543,1750183852290,-170.48194179,0.00022136,6]
[366314545,1750183852299,-460.0,0.00022136,6]
[366314547,1750183852308,-570.66,0.00022136,6]
[366314549,1750183852318,-460.0,0.00022136,6]
[366314551,1750183852328,-460.0,0.00022136,6]
[366314553,1750183852337,-460.0,0.00022136,6]
[366314555,1750183852347,-460.0,0.00022136,6]
[366314557,1750183852357,-460.0,0.00022136,6]
[366314559,1750183852367,-460.0,0.00022136,6]
[366314561,1750183852376,-460.0,0.00022136,6]
[366314563,1750183852386,-460.0,0.00022136,6]
[366314565,1750183852395,-460.0,0.00022136,6]
[366314568,1750183852407,-460.0,0.00022136,6]
[366314570,1750183852416,-604.63573036,0.00022136,6]
[366314572,1750183852426,-460.0,0.00022136,6]
[366314574,1750183852436,-833.52,0.00022136,6]
[366314576,1750183852446,-460.0,0.00022136,6]
[366314578,1750183852455,-1871.98,0.00022136,6]
[366314580,1750183852464,-1529.02,0.00022136,6]
[366314582,1750183852474,-920.73,0.00022136,6]
[366314584,1750183852483,-460.0,0.00022136,6]
[366314586,1750183852492,-460.0,0.00022136,6]
[366314588,1750183852502,-460.0,0.00022136,6]
[366314590,1750183852512,-2538.75,0.00022136,6]
[366314592,1750183852521,-460.0,0.00022136,6]
[366314594,1750183852531,-460.0,0.00022136,6]
[366314596,1750183852540,-460.0,0.00022136,6]
[366314598,1750183852550,-460.0,0.00022136,6]
[366314600,1750183852560,-460.0,0.00022136,6]
[366314602,1750183852570,-460.0,0.00022136,6]
[366314604,1750183852579,-460.0,0.00022136,6]
[366314605,1750183852588,-582.78,0.00022136,6]
[366314607,1750183852597,-460.0,0.00022136,6]
[366314610,1750183852609,-361.29407006,0.00022136,6]
[366314612,1750183852618,-440.0,0.00022136,6]
[366314614,1750183852628,-1732.82,0.00022136,6]
[366314616,1750183852638,-618.4,0.00022136,6]
[366314618,1750183852648,-596.57,0.00022136,6]
[366314620,1750183852658,-291.90002606,0.00022136,6]
[366314622,1750183852668,-481.99,0.00022136,6]
[366314624,1750183852678,-460.0,0.00022136,6]
[366314626,1750183852688,-1910.9,0.00022136,6]
[366314628,1750183852698,-1647.12,0.00022136,6]
[366314629,1750183852707,-4547.79,0.00022136,6]
[366314632,1750183852718,-460.0,0.00022136,6]
[366314633,1750183852727,-1551.95,0.00022136,6]
[366314635,1750183852737,-585.50616548,0.00022136,6]
[366314637,1750183852747,-460.0,0.00022136,6]
[366314639,1750183852757,-5865.31,0.00022136,6]
[366314641,1750183852767,-1986.44,0.00022136,6]
[366314643,1750183852777,-5369.29,0.00022136,6]
[366314646,1750183852787,-1652.96,0.00022136,6]
[366314648,1750183852796,-650.75,0.00022136,6]
[366314650,1750183852805,-491.1,0.00022136,6]
[366314651,1750183852815,-1822.09,0.00022136,6]
[366314654,1750183852825,-2564.14,0.00022136,6]
[366314656,1750183852836,-193.16601192,0.00022136,6]
[366314658,1750183852847,-460.0,0.00022136,6]
[366314659,1750183852857,-666.07,0.00022136,6]
[366314661,1750183852866,-460.0,0.00022136,6]
[366314663,1750183852875,-460.0,0.00022136,6]
[366314666,1750183852885,-9034.17,0.00022136,6]
[366314668,1750183852895,-835.98,0.00022136,6]
[366314669,1750183852905,-748.19,0.00022136,6]
[366314671,1750183852915,-157.75692255,0.00022136,6]
[366314673,1750183852925,-460.0,0.00022136,6]
[366314674,1750183852934,-430.0,0.00022136,6]
[366314676,1750183852945,-460.0,0.00022136,6]
[366314678,1750183852954,-522.02,0.00022136,6]
[366314680,1750183852964,-345.60704222,0.00022136,6]
[366314681,1750183852974,-460.0,0.00022136,6]
[366314683,1750183852984,-460.0,0.00022136,6]
[366314685,1750183852994,-460.0,0.00022136,6]
[366314686,1750183853005,-570.01625775,0.00022136,6]
[366314688,1750183853015,-1297.48,0.00022136,6]
[366314690,1750183853025,-2238.85,0.00022136,6]
[366314691,1750183853035,-2281.84,0.00022136,6]